{"text_format":"3","workbook":"xlsx","n_sheets":1,"sheets":["采购清单"],"not_rendered":{"images":3,"defined_names":2},"read":"whole","date_system":"1900"}

{"sheet":"采购清单","index":0,"n_rows":26,"n_cols":20,"rows_kept":26,"merged":[[0,1,0,19],[24,0,24,16]]}
[null,"安徽省交通控股集团有限公司2025年度新建改建路段服务区物业设施采购及安装项目"]
[{"$nulls":19},"单位：元"]
["序号","编号","区域","设施设备名称","项目特征","吕寨","阜南东","天华","竹丝湖","金社","漆园","王庄","广德","吴圩","涡阳北","合计数量","单位","单价（元）","合价（元）","参考图片"]
[1,203,"物业设施设备","保洁车","1、电池：48V /32A知名品牌免维护\n2、电机：550W  \n3、充电器：便携式智能全自动充电器 \n4、仪表台：注塑成型仪表台，电源锁，仪表，组合开关\n5、灯光及信号：LED照明灯、左右转向灯、刹车灯、行车灯、仪表、电喇叭、爆闪警示灯\n 6、箱体：500L采用100%高密度聚乙烯(PP) ，箱体可旋转，垃圾可一次性倾倒                                              \n7、动力传动：后置驱动，配备前进和倒挡\n8、制 动：脚踩机械连杆鼓式后轮制动 + 左手把式软轴前轮制动 + 手动机械驻车制动\n9、车 架：整体焊接一体大梁 + 酸洗电泳磷化烤漆，车架主梁采用40*40*2方管（从前到后为一体折弯）\n10、顶棚及前档：铁质\n11、 座椅：皮革软座椅+皮革软靠背\n12、车身颜色：黄色                                          13、驾驶室侧后方配置2套保洁工具挂钩",5,5,10,0,0,5,10,5,5,5,{"$f":"SUM(F4:O4)","v":50},"台",null,{"$f":"P4*R4","v":{"v":0,"d":"0.00"}},{"$f":"_xlfn.DISPIMG(\"ID_5C586FD7B11E45D3B6E18F38F72328CA\",1)","v":"=DISPIMG(\"ID_5C586FD7B11E45D3B6E18F38F72328CA\",1)"}]
[2,204,"物业设施设备","小型洗地机","1、供电方式/操作方式:电瓶式/手推式（把手高度可调节）                    \n2、电压：24V \n3、电机：550W/400W                 \n4、清/污水箱容量：11L/13L （污水箱可拆下倾倒污水）\n5、洗地宽度:350mm                     \n6、吸扒宽度：420mm\n7、工作效率： 1000㎡/h\n8、电池：知名品牌免维护32AH                               \n9、规格：前附洗盘，后带吸盘\n10、底盘采用镀锌工艺防腐\n11、刷盘罩采用工程塑料\n12、充电器：微电脑分段式",2,2,4,0,0,2,4,2,2,2,20,"台",null,{"v":0,"d":"0.00"}]
[3,205,"物业设施设备","驾驶式洗地机","1、 电压/驱动：24VDC/550W;\n2、 刷盘/吸污马达：450W×2/450W\n3、 清/污水箱容量：75L/85L\n4、 洗地宽度：700mm\n5、 吸扒宽度：960mm\n6、 工作效率：4100m2/h\n7、 电瓶：知名品牌免维护 100Ah*2 24V\n8、 水箱材质：聚乙烯滚塑\n9、 底盘：防腐工艺",2,2,4,0,0,2,4,2,2,2,20,"台",null,{"v":0,"d":"0.00"}]
[4,206,"物业设施设备","吹地风机","功率：1000W；电压：220V—240V；转速：高，中，低",4,4,8,0,0,4,8,4,4,4,40,"个",null,{"v":0,"d":"0.00"}]
[5,207,"物业设施设备","开水器","1、外壳：黑钛不锈钢；\n2、工艺：步进式开水器；\n3、功率：380V,12KW\n4、控制方式：全自动；\n5、进水方式：全自动\n6、内胆：304不锈钢，120L，内胆全封闭；\n7、开水量：180L/H；\n8、出水方式：两开；\n9、过滤等级：内置三级过滤（PP棉+活性炭+颗粒碳）                         10、外形尺寸：900*510*1750mm（偏差范围-5%~+5%）\n11、适用水压：100-500(KPa)                               12、四、五级过滤RO反渗透：800G RO膜+后置活性炭；压力桶30L；与所投开水器相匹配  ",4,4,8,0,0,4,8,4,4,4,40,"台",null,{"v":0,"d":"0.00"},{"$f":"_xlfn.DISPIMG(\"ID_F85FFC915C54438988B54E3E25C629BE\",1)","v":"=DISPIMG(\"ID_F85FFC915C54438988B54E3E25C629BE\",1)"}]
[6,208,"物业设施设备","绿篱机","1、排量：22.5cc                                       \n2、功率：0.63kW(0.84hp)/8000rpm\n3、最大扭矩:0.94Nm/5000rpm                            \n4、油箱容积：0.4L \n5、发动机形式：2冲程、风冷、单缸、垂直轴                           \n6、化油器形式：膜片式                               \n7、扫气方式：分层扫气系统\n8、刀片长度：600mm\n9、刀齿开口：28mm\n10、启动方式：手拉启动",1,1,1,1,1,1,1,1,1,1,10,"台",null,{"v":0,"d":"0.00"}]
[7,209,"物业设施设备","打草机","1、排量：45.4cc                                      \n2、功率：1.42kW(1.90hp)/7500rpm\n3、最大扭矩：2.18Nm/5000rpm                           \n4、油箱容积：0.9L \n5、发动机形式：2冲程、风冷、单缸、水平轴                           \n6、化油器形式：膜片式                               \n7、扫气方式：分层扫气系统\n8、工作杆直径：Φ28mm\n9、启动方式：手拉启动",1,1,1,1,1,1,1,1,1,1,10,"台",null,{"v":0,"d":"0.00"}]
[8,210,"物业设施设备","120L塑料垃圾桶","120L蓝色，色标为PANTONE 647C；壁厚4mm；含驿达标识和垃圾分类标识",80,80,80,80,80,80,80,80,80,80,800,"只",null,{"v":0,"d":"0.00"}]
[9,211,"物业设施设备","120L塑料垃圾桶","120L绿色，色标为PANTONE 2259C；壁厚4mm；含驿达标识和垃圾分类标识",40,40,40,40,40,40,40,40,40,40,400,"只",null,{"v":0,"d":"0.00"}]
[10,212,"物业设施设备","120L塑料垃圾桶","120L红色，色标为 PANTONE 485C，壁厚4mm；含驿达标识和垃圾分类标识",40,40,40,40,40,40,40,40,40,40,400,"只",null,{"v":0,"d":"0.00"}]
[11,213,"物业设施设备","120L塑料垃圾桶","120L黑色，色标为PANTONE Black7C，壁厚4mm；含驿达标识和垃圾分类标识",80,80,80,80,80,80,80,80,80,80,800,"只",null,{"v":0,"d":"0.00"}]
[12,214,"物业设施设备","240L塑料垃圾桶","240L蓝色，色标为PANTONE 647C；壁厚5mm，含驿达标识和垃圾分类标识",30,30,30,30,30,30,30,30,30,30,300,"只",null,{"v":0,"d":"0.00"}]
[13,215,"物业设施设备","240L塑料垃圾桶","240L绿色，色标为PANTONE 2259C壁厚5mm，含驿达标识和垃圾分类标识",20,20,20,20,20,20,20,20,20,20,200,"只",null,{"v":0,"d":"0.00"}]
[14,216,"物业设施设备","240L塑料垃圾桶","240L红色，色标为 PANTONE 485C；壁厚5mm；含驿达标识和垃圾分类标识",20,20,20,20,20,20,20,20,20,20,200,"只",null,{"v":0,"d":"0.00"}]
[15,217,"物业设施设备","240L塑料垃圾桶","240L黑色，色标为PANTONE Black7C，壁厚5mm；含驿达标识和垃圾分类标识",30,30,30,30,30,30,30,30,30,30,300,"只",null,{"v":0,"d":"0.00"}]
[16,218,"物业设施设备","四分类不锈钢垃圾桶","四分类不锈钢垃圾桶，整体201不锈钢（顶盖底座承重部分厚1mm,其他0.8mm）, 外形尺寸：132*37*96cm, 0.3mm镀锌板内筒，内桶尺寸：25*31*42cm，含驿达标识和垃圾分类标识",16,16,16,16,16,16,16,16,16,16,160,"只",null,{"v":0,"d":"0.00"}]
[17,219,"物业设施设备","不锈钢半投灭烟圆形垃圾桶","不锈钢半投灭烟圆形垃圾桶，201不锈钢，壁厚0.5mm，外形尺寸38*73CM;内桶镀锌板34*53 CM，厚0.3mm，含驿达标识和垃圾分类标识",16,16,16,16,16,16,16,16,16,16,160,"只",null,{"v":0,"d":"0.00"}]
[18,220,"物业设施设备","限高门","1、规格：6000mm*3500m；\n2、上横杆：3根50mm*30mm*2mm镀锌方通焊接骨架表面烤漆闪银色；\n3、立柱：2mm镀锌板冲孔折弯焊接箱体，内置3mm乳白色灯箱片；内置LED光源；箱体表面烤漆。 \n4、下横杆：100mm*50mm*2mm镀锌方管表面贴反光膜。\n5、标牌：2mm铝板，表面贴银色/黑色/蓝色/白色/红色反光膜；标牌包括限高，限行、限速、禁停等共5套，具体尺寸及做法详见参考图片。 ",2,2,2,2,2,2,2,2,2,2,20,"座",null,{"v":0,"d":"0.00"}]
[19,221,"物业设施设备","保安岗亭","岗亭尺寸：3.0*2.0*（3.1+1.2）m(长*宽*高)        1、底板用镀锌钢管40*40*2mm作基础，铺设厚18mm木板，上面再铺3mm花纹防滑铝板。\n2、主立柱：采用定制80*80*3mm镀锌方管，半径500mm圆弧2mm镀锌钢板焊接。\n3、窗：彩铝窗壁厚为1.5mm，移窗玻璃为5mm钢化白玻。\n4、门：上部为5mm钢化白玻；下部为1.2mm镀锌钢板外加汽车调和漆，中间层为保温板，内侧为3mm铝塑板。\n5、外封板：1.5mm镀锌钢板外加汽车调和漆，中间层为保温板。\n6、内封板：3mm铝塑板、强度高、耐撞击、易保养。\n7、外顶：40*80*2mm镀锌方管折成型喷汽车漆，1.5mm镀锌钢板焊接外加汽车漆，镀锌钢板封顶做雨棚。\n8、内顶：豪华集成吊顶，25W吸顶灯。\n9、标配：含3mm防滑钢板楼梯一套（不少于五级）、不锈钢工作台面、室内机空调架、三孔插座、五孔插座、配电盒、电源配置：漏电保护、开关、2组爆闪警灯230*200mm、1组顶部警灯180mm*200mm、喊话器系统1套（300W）。\n10、治安岗亭大帽檐以下主柱必须整体不可切割，不可运抵现场后二次焊接。\n11、治安岗亭标识一套",2,2,4,0,0,2,4,2,2,2,20,"座",null,{"v":0,"d":"0.00"}]
[20,222,"物业设施设备","巡逻车","外型尺寸（mm） ≥3100×1420×1900，额定载客(人) ≥5\n最高车速(km/h) ≤30，最小转弯半径(m) ≤4.5，最大爬坡度（空载 ≥20%\n最大制动距离(m) ≤4，续驶里程（km） ≥80，离地间隙（mm） ≥140\n整车重量（kg） ≥800，轴距（mm） ≥2000，轮距(mm) ≥1150/1140\n蓄电池 知名品牌免维护 48V ≥200 AH\n充电机 全自动微电脑控制高频脉冲式充电器（18A/48V）过充保护（可内置）\n控制器 带温度过高保护\n牵引电机 48V 4.0KW直流串励电机/交流变频\n动力传动系统 后置驱动\n转向系统 齿轮助力方向机，自动间隙补偿功能\n前桥及悬挂 整体式悬挂、加螺旋弹簧+筒式液压减震\n后桥及悬挂 麦弗逊独立悬挂/非独立悬挂，钢板/螺旋弹簧结构+双筒式液压阻尼减震器\n制动系统 前后双回路液压鼓式制动、驻车制动装置\n轮胎 铝合金轮毂，真空子午轮胎155/70R12\n油漆 全车采用汽车级普通油漆，电脑调漆，专业喷涂设备，车辆颜色按照招标人要求订做\n车体 增强微型汽车底盘，优化防锈烤漆处理，钢骨架及高强度玻璃钢覆盖车身\n灯光及信号 远光前大灯、近光前小灯、转向灯、轿车组合后尾灯、电喇叭及倒车蜂鸣器，警报器\n前挡及顶棚 钢化玻璃、汽车专用雨刮器，顶棚铝合金框架+玻璃钢\n车身左右侧、后侧附带遮雨帘（收缩）\n座椅 软皮座椅\n仪表 玻璃钢成形仪表台，数字式车速里程表、电压表、电流表、电量表、仪表指示灯\n开关 启动开关、灯光及组合开关、前后换向开关\n高端档位器 高端前进、倒退档位器\n警灯 国标LED长排警灯带喊话器\n配件 整车配送充电机和随车工具一套，电动巡逻车应印有驿达公司LOGO标识。",1,1,2,0,0,1,2,1,1,1,10,"台",null,{"v":0,"d":"0.00"}]
[21,230,"物业设施设备","嵌入式不锈钢三合一擦手纸盒（带垃圾桶）","1、材质：304不锈钢；厚度0.8mm；2、拉丝面板，亚光银灰色；3、金属钥匙孔，配有专用钥匙可上锁；4、带可移动垃圾通内筒；5、尺寸符合现场实际可牢固安装（自行勘察现场）",null,null,4,{"$nulls":7},4,"组",null,{"v":0,"d":"0.00"}]
["合 计",{"$nulls":17},{"$f":"SUM(S4:S24)","v":{"v":0,"d":"0.00"}}]
["备注:所有产品进场前需报甲方确认品牌，并满足甲方验收要求，在进场时提供产品合格证、检测报告等相关技术资料。"]